bitfinex/quotes_ETHUSD_20250323
["timestamp","ask_amount","ask_price","bid_price","bid_amount"]
[1742729498362,0.8232,2019.4,2018.7,0.55]
[1742729498511,0.8232,2019.4,2018.8,4.682]
[1742729499127,0.8232,2019.3,2018.8,4.682]
[1742729500345,0.8232,2019.3,2018.7,4.682]
[1742729502644,0.8232,2019.1,2018.6,26.18]
[1742729502851,0.8232,2019.1,2018.7,4.683]
[1742729507248,0.8232,2019.1,2018.7,4.73253331]
[1742729507437,0.8232,2019.1,2018.7,5.50443331]
[1742729508366,0.7656,2019.3,2018.8,0.55]
[1742729515858,0.7656,2019.3,2018.9,4.683]
[1742729517859,0.7656,2019.3,2019.0,4.683]
[1742729518726,0.7656,2019.3,2018.8,26.738]
[1742729518960,0.7656,2019.3,2018.9,4.683]
[1742729522552,0.7656,2019.3,2019.0,0.0495245]
[1742729522940,0.7656,2019.3,2018.9,4.683]
[1742729523657,0.7656,2019.3,2019.0,0.04952356]
[1742729524451,0.7917,2019.7,2019.1,0.55]
[1742729526039,0.7917,2019.7,2019.0,3.0]
[1742729527664,0.7917,2019.7,2018.9,4.683]
[1742729530267,0.7917,2019.7,2018.8,26.9763]
[1742729530439,0.7917,2019.7,2018.9,4.682]
[1742729530639,0.7917,2019.7,2018.8,26.188]
[1742729530840,0.7917,2019.7,2019.0,4.682]
[1742729531139,0.7917,2019.7,2018.8,26.188]
[1742729531364,0.7917,2019.6,2018.9,4.682]
[1742729531670,0.7917,2019.4,2018.9,4.682]
[1742729535155,0.7917,2019.4,2018.8,26.188]
[1742729536669,0.7917,2019.4,2018.7,4.683]
[1742729537074,0.7917,2019.4,2018.4,27.5253]
[1742729537268,0.7917,2019.4,2018.5,4.683]
[1742729538482,0.25629512,2019.3,2018.5,4.683]
[1742729538682,0.797,2019.2,2018.5,4.683]
[1742729540879,0.797,2019.0,2018.5,4.683]
[1742729564803,0.797,2019.0,2018.2,26.742]
[1742729564968,0.797,2019.0,2018.3,4.683]
[1742729570010,0.797,2018.9,2018.3,4.683]
[1742729586711,0.797,2018.9,2018.4,0.04953883]
[1742729587731,0.797,2018.9,2018.3,4.683]
[1742729590231,0.797,2018.9,2018.4,3.04953381]
[1742729590411,0.7573,2019.2,2018.4,3.85903381]
[1742729590617,0.7573,2019.2,2018.5,0.55]
[1742729590935,0.7573,2019.2,2018.6,0.04952843]
[1742729591133,0.7573,2019.2,2018.7,5.4915]
[1742729591339,0.7573,2019.2,2018.8,0.04952421]
[1742729591506,0.7573,2019.2,2018.7,5.4915]
[1742729593132,0.7573,2019.2,2018.8,3.04952405]
[1742729593544,0.7573,2019.2,2018.8,3.0]
[1742729594031,0.7573,2019.7,2018.8,3.0]
[1742729594239,0.7573,2019.5,2018.8,3.0]
[1742729595135,0.7573,2019.5,2018.8,0.55]
[1742729595329,0.7573,2019.5,2018.9,4.681]
[1742729596343,0.7573,2019.5,2019.0,0.04952419]
[1742729596556,0.7573,2019.5,2018.9,30.872]
[1742729598413,0.7573,2019.5,2019.0,0.04952124]
[1742729598945,0.7573,2019.5,2019.0,0.04952032]
[1742729599445,0.7573,2019.5,2018.9,30.872]
[1742729599651,0.7573,2019.5,2019.0,0.55]
[1742729600639,0.7573,2019.5,2019.0,3.55]
[1742729601051,0.7573,2019.5,2019.1,0.04951731]
[1742729601343,0.7573,2019.5,2019.0,3.55]
[1742729602046,0.7573,2019.5,2019.0,4.3782]
[1742729602243,0.7573,2019.5,2019.1,0.04951732]
[1742729602415,0.7573,2019.5,2019.0,4.3782]
[1742729602615,0.7803,2019.8,2019.0,4.3782]
[1742729605241,0.7803,2019.7,2019.0,4.3782]
[1742729607743,0.7803,2019.7,2019.1,4.68]
[1742729609044,0.7803,2019.7,2018.9,26.191]
[1742729609249,0.7803,2019.7,2019.0,4.68]
[1742729609544,3.7919,2019.6,2018.9,30.871]
[1742729609728,0.7919,2019.4,2018.9,30.871]
[1742729610832,1.78778971,2019.4,2018.9,26.191]
[1742729611032,0.7919,2019.3,2018.9,26.191]
[1742729611653,0.7919,2019.3,2018.6,4.68]
[1742729613956,0.7592,2019.2,2018.6,4.68]
[1742729625739,0.7592,2019.2,2018.4,3.0]
[1742729625958,0.7592,2019.0,2018.5,4.68]
[1742729627767,0.58146258,2019.1,2018.3,26.186]
[1742729627768,0.98220795,2018.9,2018.3,30.866]
[1742729627952,0.774,2018.8,2018.3,30.866]
[1742729629451,0.774,2018.8,2018.3,26.186]
[1742729633647,0.774,2018.8,2018.2,4.68]
[1742729634869,0.774,2018.6,2018.2,4.68]
[1742729647384,0.774,2018.6,2018.2,5.5113]
[1742729647590,0.774,2018.6,2018.3,0.04954481]
[1742729649275,0.774,2018.6,2018.2,5.5113]
[1742729649885,0.755,2019.0,2018.2,5.5113]
[1742729650097,0.755,2018.9,2018.2,5.5113]
[1742729651101,0.755,2018.9,2018.2,4.68]
[1742729652494,3.0,2018.9,2018.2,4.68]
[1742729652797,3.0,2018.9,2018.0,0.8313]
[1742729652798,0.755,2018.8,2018.0,3.8313]
[1742729652968,3.0,2018.9,2018.0,3.8313]
[1742729652969,0.755,2018.6,2018.2,4.68]
[1742729654815,0.755,2018.6,2018.0,29.196]
[1742729655000,0.755,2018.6,2018.1,4.68]
[1742729655991,0.755,2018.6,2018.1,4.72954594]
[1742729656192,0.755,2018.6,2018.1,4.68]
[1742729656502,0.755,2018.6,2018.1,4.72954593]
[1742729656674,0.755,2018.6,2018.1,4.68]
[1742729657002,0.755,2018.6,2018.1,4.72954593]
[1742729657599,0.755,2018.6,2018.1,5.5018]
[1742729657979,0.755,2018.6,2018.1,5.55134026]
[1742729658179,0.755,2018.6,2018.1,5.5018]
[1742729658400,0.755,2018.6,2018.1,4.68]
[1742729663784,0.755,2018.6,2018.2,0.04954465]
[1742729663984,0.755,2018.6,2018.1,4.68]
[1742729664186,0.755,2018.6,2018.2,0.04954308]
[1742729664906,0.755,2018.6,2018.1,4.68]
[1742729665110,0.755,2018.6,2018.2,0.04954041]
[1742729665974,0.755,2018.6,2018.1,4.68]
[1742729667889,0.755,2018.6,2018.2,0.04954018]
[1742729668698,0.755,2018.6,2018.1,4.68]
[1742729668897,0.755,2018.6,2018.2,0.04954012]
[1742729669215,0.755,2018.6,2018.2,0.55]
[1742729669515,0.7656,2018.8,2018.3,0.8218]
[1742729669711,0.7656,2018.8,2018.4,0.59953592]
[1742729669916,0.7656,2018.8,2018.5,4.679]
[1742729670483,0.7656,2018.8,2018.6,0.04953335]
[1742729670905,0.7656,2018.8,2018.5,4.679]
[1742729672986,0.7656,2018.8,2018.6,0.04953341]
[1742729673817,5.5038,2019.6,2018.6,0.55]
[1742729674114,0.8258,2019.4,2018.5,4.679]
[1742729676988,0.9739886,2019.3,2018.5,4.679]
[1742729677222,0.8258,2019.2,2018.5,4.679]
[1742729677426,0.8258,2019.2,2018.6,1.35133218]
[1742729677788,0.8258,2019.2,2018.6,1.3018]
[1742729677993,0.8258,2019.2,2018.7,0.04952823]
[1742729678224,0.8258,2019.2,2018.6,1.3018]
[1742729680125,0.8258,2019.2,2018.6,4.3018]
[1742729680498,0.8258,2019.2,2018.8,0.55]
[1742729680796,0.8258,2019.2,2018.9,4.72752459]
[1742729681203,3.36338563,2019.7,2018.9,4.72752459]
[1742729681409,0.8258,2019.5,2018.9,5.47932459]
[1742729682130,0.8258,2019.5,2018.9,5.4298]
[1742729682430,0.8258,2019.5,2019.0,0.04952293]
[1742729682632,0.8258,2019.5,2019.1,0.55]
[1742729683433,0.8258,2019.5,2019.0,0.55]
[1742729686033,0.8258,2019.5,2018.9,0.7518]
[1742729686242,0.8258,2019.5,2019.1,4.677]
[1742729687142,0.8258,2019.5,2018.7,0.55]
[1742729687354,0.8258,2019.5,2018.8,8.227]
[1742729687747,0.8258,2019.5,2018.8,4.677]
[1742729689750,0.8258,2019.5,2018.8,4.72652915]
[1742729690063,0.8258,2019.5,2018.8,4.677]
[1742729690551,0.8258,2019.5,2018.8,5.4503]
[1742729690848,0.8258,2019.5,2018.9,0.04952327]
[1742729691024,0.8258,2019.5,2019.0,0.55]
[1742729691637,0.8258,2019.5,2018.9,3.0]
[1742729691638,0.8258,2019.5,2018.9,4.3233]
[1742729691836,0.8258,2019.5,2018.9,4.37281878]
[1742729692552,0.8258,2019.5,2018.9,4.3233]
[1742729693460,0.8258,2019.5,2019.0,0.0495191]
[1742729694132,0.8258,2019.5,2018.9,4.3233]
[1742729698224,0.8258,2019.5,2019.0,0.04951906]
[1742729698922,0.8258,2019.5,2019.0,0.04951901]
[1742729700022,0.8258,2019.5,2018.9,4.3233]
[1742729701758,0.8258,2019.5,2018.9,1.3233]
[1742729702064,0.8258,2019.5,2019.1,3.0]
[1742729704068,0.8258,2019.5,2019.0,4.676]
[1742729704445,0.8258,2019.5,2019.0,5.4823]
[1742729704646,0.8258,2019.5,2019.1,0.04951902]
[1742729714045,0.8258,2019.5,2019.0,4.676]
[1742729714694,0.8258,2019.5,2019.1,0.04951899]
[1742729715277,0.8258,2019.5,2019.2,0.55]
[1742729715591,0.804,2019.8,2019.2,1.3669]
[1742729716888,0.804,2019.8,2019.2,4.3669]
[1742729723329,0.804,2019.8,2019.4,0.55]
[1742729723500,0.804,2019.8,2019.5,4.674]
[1742729730889,0.804,2019.8,2019.3,0.55]
[1742729731111,0.804,2019.8,2019.4,4.674]
[1742729731812,0.804,2019.8,2019.5,0.40063529]
[1742729732897,0.804,2019.8,2019.3,4.674]
[1742729733080,0.804,2019.8,2019.6,0.40214011]
[1742729733277,0.804,2019.8,2019.7,0.40193627]
[1742729734110,0.804,2019.8,2019.3,4.674]
[1742729734307,0.804,2019.8,2019.7,0.40193627]
[1742729734722,0.804,2019.8,2019.3,4.674]
[1742729735088,0.804,2019.8,2019.7,0.40193627]
[1742729735494,0.804,2019.8,2019.3,4.674]
[1742729735695,0.804,2019.8,2019.4,0.40254784]
[1742729735890,0.804,2019.8,2019.1,26.185]
[1742729736080,0.804,2019.8,2019.2,0.40295566]
[1742729738717,0.3804,2019.7,2019.2,0.40295566]
[1742729738917,0.8042,2019.6,2019.2,0.40295566]
[1742729739310,0.8042,2019.4,2019.2,0.40295566]
[1742729739889,0.8042,2019.4,2019.3,0.37164513]
[1742729740687,0.8042,2019.4,2018.6,4.674]
[1742729740909,0.8042,2019.2,2018.6,4.674]
[1742729741110,0.8042,2019.2,2018.7,0.37336372]
[1742729741312,0.8042,2019.0,2018.5,26.182]
[1742729741619,0.8042,2019.0,2018.6,0.37356776]
[1742729741819,0.8042,2019.0,2018.1,4.674]
[1742729742124,0.8042,2018.8,2018.7,0.37407512]
[1742729742294,0.8042,2018.8,2018.2,0.37512645]
[1742729742495,0.8042,2018.6,2018.2,0.37512645]
[1742729742896,0.8042,2018.6,2018.1,4.674]
[1742729743113,0.8042,2018.6,2018.2,0.37571425]
[1742729743306,0.8042,2018.4,2018.2,0.37571425]
[1742729743502,0.8042,2018.4,2018.1,4.674]
[1742729743829,0.8042,2018.4,2018.2,0.37571425]
[1742729744429,0.8042,2018.4,2018.1,4.674]
[1742729744590,0.8042,2018.4,2018.3,0.37551013]
[1742729744795,0.8042,2018.4,2018.1,4.674]
[1742729744991,0.8042,2018.4,2018.3,0.37551013]
[1742729745219,0.8042,2018.4,2018.1,4.674]
[1742729745425,0.8042,2018.4,2018.3,0.37551013]
[1742729745803,0.8042,2018.4,2018.1,4.674]
[1742729746105,0.8042,2018.4,2018.2,0.37571425]
[1742729746311,0.8042,2018.4,2018.1,4.674]
[1742729746512,0.8042,2018.4,2018.2,0.37571425]
[1742729746714,0.8042,2018.4,2018.1,4.674]
[1742729747113,0.8042,2018.4,2018.2,0.37571425]
[1742729747313,0.8042,2018.4,2018.1,4.674]
[1742729747535,0.8042,2018.4,2018.2,0.37571425]
[1742729747713,0.8042,2018.4,2018.1,4.674]
[1742729747918,0.8042,2018.4,2018.2,0.37571425]
[1742729748111,0.8042,2018.4,2018.1,4.674]
[1742729748528,0.8042,2018.4,2018.2,0.37571425]
[1742729748716,0.8042,2018.4,2018.1,4.674]
[1742729749041,0.8042,2018.4,2018.2,0.37571425]
[1742729749335,0.8042,2018.4,2017.9,26.182]
[1742729749535,0.8042,2018.4,2018.3,0.37551013]
[1742729750044,0.8042,2018.4,2017.9,26.182]
[1742729750237,0.8042,2018.4,2018.3,0.37912933]
[1742729750535,0.8042,2018.4,2017.9,26.182]
[1742729751108,0.8042,2018.4,2018.0,0.38014407]
[1742729757120,0.8042,2018.4,2017.7,4.675]
[1742729757470,0.8042,2018.4,2017.8,0.38086197]
[1742729757628,0.8274,2018.3,2017.8,0.38086197]
[1742729757943,0.8274,2018.2,2017.8,0.38086197]
[1742729762134,0.8315,2018.6,2017.8,1.18806197]
[1742729762336,3.8315,2018.6,2017.8,1.18806197]
[1742729762868,3.8315,2018.6,2017.9,0.55]
[1742729763237,3.8315,2018.6,2018.0,0.38067027]
[1742729763437,0.94836178,2018.5,2018.0,0.38067027]
[1742729764432,0.8315,2018.4,2018.0,0.38067027]
[1742729766071,0.8315,2018.4,2017.7,4.675]
[1742729766542,0.8315,2018.4,2017.8,0.38079998]
[1742729769471,0.8315,2018.4,2017.6,4.676]
[1742729769652,0.8315,2018.4,2017.9,0.38087432]
[1742729769854,0.8315,2018.4,2017.6,4.676]
[1742729770057,0.8315,2018.4,2018.0,0.38107253]
[1742729770265,0.8315,2018.4,2017.6,4.676]
[1742729770569,0.8315,2018.4,2018.1,0.38086837]
[1742729770770,0.8315,2018.4,2017.6,4.676]
[1742729770972,0.8315,2018.4,2017.7,0.38168513]
[1742729771172,5.5075,2018.3,2018.2,0.38066423]
[1742729771374,0.8315,2018.2,2017.6,4.676]
[1742729771547,0.8315,2018.2,2017.8,0.38148091]
[1742729771742,0.8315,2018.2,2017.6,4.676]
[1742729774881,0.8315,2018.2,2017.6,5.4832]
[1742729775091,0.8315,2018.2,2017.7,0.04955552]
[1742729775381,0.8315,2018.2,2017.6,5.4832]
[1742729777484,1.21465,2018.2,2017.6,4.676]
[1742729777779,0.8278,2018.1,2017.6,4.676]
[1742729781289,0.8278,2018.1,2017.5,3.0]
[1742729781579,0.8278,2018.1,2017.4,26.196]
[1742729781783,0.8278,2018.1,2017.5,4.676]
[1742729784372,0.8278,2018.1,2017.4,26.196]
[1742729784681,0.8278,2018.1,2017.4,30.872]
[1742729785089,0.8278,2018.1,2017.5,0.04955948]
[1742729785454,0.8278,2018.1,2017.4,30.872]
[1742729785782,0.8278,2018.1,2017.5,0.33638739]
[1742729791991,0.97154739,2018.0,2017.5,0.33638739]
[1742729792179,0.7666,2017.9,2017.5,0.33638739]
[1742729795563,0.7666,2017.9,2017.3,5.226]
[1742729795759,0.7666,2017.8,2017.4,0.28491759]
[1742729795962,0.7666,2017.8,2017.1,4.676]
[1742729796165,0.7666,2017.8,2017.2,0.262788]
[1742729796990,0.7666,2017.6,2017.3,0.24115671]
[1742729797289,0.7666,2017.4,2017.0,26.204]
[1742729797493,0.7666,2017.4,2017.1,0.24156537]
[1742729806807,0.54426,2017.5,2017.1,0.24156537]
[1742729807009,1.79393283,2017.6,2017.1,0.24156537]
[1742729807708,0.97103283,2017.6,2017.1,0.24156537]
[1742729807903,0.8229,2017.5,2017.1,0.24156537]
[1742729809411,0.8229,2017.3,2017.1,0.24156537]
[1742729809602,0.8229,2017.1,2016.6,5.4969]
[1742729812626,0.8229,2017.1,2016.4,26.211]
[1742729813122,0.8229,2017.1,2016.2,5.4969]
[1742729813430,0.8229,2017.1,2016.3,3.0]
[1742729815533,0.8229,2017.1,2016.4,0.04958631]
[1742729815727,0.8229,2016.9,2016.4,0.22567506]
[1742729816032,4.677,2017.0,2016.4,0.22567506]
[1742729816033,0.8229,2016.7,2016.4,0.17608875]
[1742729816201,0.8229,2016.7,2016.2,4.677]
[1742729816402,0.8229,2016.7,2016.3,0.17629325]
[1742729816933,0.8229,2016.7,2016.1,5.5069]
[1742729817103,0.8229,2016.7,2016.4,0.17608875]
[1742729817305,1.427889,2016.7,2016.1,5.5069]
[1742729817537,0.8229,2016.6,2016.5,0.17588426]
[1742729817705,0.8229,2016.6,2016.1,5.5069]
[1742729817904,0.8229,2016.6,2016.5,0.17588426]
[1742729818118,0.8229,2016.6,2016.1,0.01]
[1742729818307,0.8229,2016.6,2016.5,0.17588426]
[1742729818507,1.35785031,2016.6,2016.1,0.01]
[1742729818731,0.8229,2016.6,2016.1,0.01]
[1742729818903,0.8229,2016.6,2016.2,0.17859759]
[1742729822912,5.5009,2016.6,2016.2,0.17859759]
[1742729823845,0.7902,2016.5,2016.2,0.17859759]
[1742729825199,3.7902,2016.5,2016.2,0.17859759]
[1742729825400,0.7902,2016.3,2016.1,0.01]
[1742729825709,0.7902,2016.3,2016.2,0.16690239]
[1742729826002,0.7902,2016.3,2016.1,0.01]
[1742729826203,5.4682,2016.2,2016.1,0.01]
[1742729826934,8.4682,2016.2,2016.1,0.01]
[1742729827103,9.399702,2016.2,2016.1,0.01]
[1742729829412,9.76750281,2016.2,2016.1,0.01]
[1742729830611,9.76750281,2016.2,2016.1,0.15267341]
[1742729835834,10.31750281,2016.2,2016.1,0.01]
[1742729836221,5.08950281,2016.2,2016.1,0.01]
[1742729836535,9.76850281,2016.2,2016.1,0.01]
[1742729841350,5.08950281,2016.2,2016.1,0.01]
[1742729841557,9.76950281,2016.2,2016.1,0.01]
[1742729842239,3.0,2016.2,2016.1,0.01]
[1742729842438,1.01646591,2016.3,2016.1,0.12290805]
[1742729842628,4.68,2016.4,2016.1,0.12290805]
[1742729842834,4.68,2016.4,2016.1,0.01]
[1742729843038,0.7524,2016.3,2016.1,0.01]
[1742729843351,1.29564,2016.3,2016.2,0.10263739]
[1742729843761,1.29564,2016.3,2016.1,0.01]
[1742729844059,1.29564,2016.3,2016.2,0.10263739]
[1742729844225,0.54324,2016.3,2016.1,0.01]
[1742729844420,4.68,2016.4,2016.2,0.10186752]
[1742729844657,4.68,2016.4,2016.1,0.01]
[1742729844959,4.68,2016.4,2016.2,0.10186752]
[1742729845159,4.68,2016.4,2016.2,0.13887248]
[1742729845365,0.54324,2016.3,2016.1,0.01]
[1742729845741,0.54324,2016.3,2016.2,0.13865076]
[1742729846063,0.54324,2016.3,2016.1,0.01]
[1742729847259,4.68,2016.4,2016.1,0.01]
[1742729849648,0.7524,2016.3,2016.1,0.01]
[1742729850050,3.0,2016.3,2016.1,0.01]
[1742729850263,0.7524,2016.2,2016.1,0.01]
[1742729859050,8.4324,2016.2,2016.1,0.01]
[1742729859245,9.27564,2016.2,2016.1,0.01]
[1742729868571,8.52324,2016.2,2016.1,0.01]
[1742729868736,3.84324,2016.2,2016.1,0.01]
[1742729869026,7.68,2016.2,2016.1,0.01]
[1742729870549,3.0,2016.2,2016.1,0.01]
[1742729871459,0.8121,2016.4,2016.1,0.01]
[1742729871614,3.0,2016.3,2016.1,0.01]
[1742729873253,0.8121,2016.4,2016.1,0.01]
[1742729873419,4.68,2016.4,2016.1,0.01]
[1742729873970,4.68,2016.4,2016.1,0.7642]
[1742729874576,5.66651034,2016.4,2016.1,0.01]
[1742729879677,0.8121,2016.3,2016.1,0.01]
[1742729879882,5.66651034,2016.4,2016.1,0.01]
[1742729882879,3.7783,2016.3,2016.1,0.01]
[1742729883346,0.7783,2016.2,2016.1,0.01]
[1742729883546,1.72278103,2016.2,2016.1,0.01]
[1742729884079,0.94448103,2016.2,2016.1,0.01]
[1742729884264,1.72278103,2016.2,2016.1,0.01]
[1742729885585,4.72278103,2016.2,2016.1,0.01]
[1742729887584,3.94448103,2016.2,2016.1,0.01]
[1742729887746,7.679,2016.2,2016.1,0.01]
[1742729888180,3.0,2016.2,2016.1,0.01]
[1742729888381,7.679,2016.2,2016.1,0.01]
[1742729888676,3.0,2016.2,2016.1,0.01]
[1742729888983,4.679,2016.4,2016.1,0.8379]
[1742729890292,1.37300343,2016.5,2016.1,0.8379]
[1742729890456,3.0,2016.4,2016.1,0.8379]
[1742729891294,3.94415103,2016.4,2016.1,0.01]
[1742729892367,3.0,2016.4,2016.2,0.8279]
[1742729892759,1.36810759,2016.5,2016.2,0.8279]
[1742729893079,3.0,2016.6,2016.2,0.8279]
[1742729893289,3.36812078,2016.6,2016.2,0.8279]
[1742729893878,1.0182154,2016.7,2016.2,0.8279]
[1742729894087,2.46307607,2017.0,2016.3,0.8279]
[1742729894469,1.78348907,2017.0,2016.3,0.8279]
[1742729894877,0.71420761,2017.0,2016.3,0.8279]
[1742729895362,1.08907162,2017.0,2016.3,0.8279]
[1742729895691,0.98364237,2016.9,2016.3,0.8279]
[1742729899076,4.678,2016.8,2016.3,0.8279]
[1742729899275,0.56616424,2016.7,2016.3,0.8279]
[1742729899497,3.56616424,2016.7,2016.3,0.8279]
[1742729908012,4.34676424,2016.7,2016.1,4.688]
[1742729908181,4.34676424,2016.7,2016.1,0.8323]
[1742729910577,0.97105703,2016.5,2016.1,0.8323]
[1742729916948,1.42477916,2016.5,2016.1,0.8323]
[1742729917623,3.0,2016.3,2016.1,0.8323]
[1742729918225,3.0,2016.3,2016.1,0.01]
[1742729919831,3.37290635,2016.3,2016.1,0.01]
[1742729921035,0.8024,2016.2,2016.1,0.01]
[1742729921236,1.68773064,2016.2,2016.1,0.01]
[1742729923425,0.88533064,2016.2,2016.1,0.01]
[1742729928322,0.37290635,2016.3,2016.1,0.01]
[1742729928528,5.64905703,2016.5,2016.2,0.7953]
[1742729928838,3.0,2016.4,2016.2,0.7953]
[1742729929041,3.8649057,2016.4,2016.2,0.7953]
[1742729930045,1.23032126,2016.4,2016.2,0.7953]
[1742729930310,3.97105703,2016.5,2016.2,0.7953]
[1742729931555,3.0,2016.5,2016.2,0.7953]
[1742729932235,5.67470084,2016.6,2016.2,0.7953]
[1742729932431,4.678,2016.6,2016.2,0.7953]
[1742729933050,5.65105032,2016.7,2016.2,0.7953]
[1742729933227,6.59126535,2016.7,2016.2,0.7953]
[1742729936657,0.97305032,2016.7,2016.2,0.7953]
[1742729937231,5.65105032,2016.7,2016.2,0.7953]
[1742729937961,0.7511,2016.6,2016.1,0.01]
[1742729938525,3.7511,2016.6,2016.1,0.01]
[1742729938726,0.94021503,2016.5,2016.1,0.01]
[1742729943076,1.01363669,2016.3,2016.1,0.01]
[1742729943280,5.69163669,2016.3,2016.1,0.01]
[1742729943943,6.06668325,2016.3,2016.1,0.01]
[1742729946477,4.95982,2016.2,2016.1,0.01]
[1742729946683,7.05437033,2016.2,2016.1,0.01]
[1742729948479,7.05437033,2016.2,2016.1,1e-05]
[1742729948681,10.05437033,2016.2,2016.1,1e-05]
[1742729949795,7.05437033,2016.2,2016.1,0.82191]
[1742729950009,4.95982,2016.2,2016.1,0.82191]
[1742729953100,4.95982,2016.2,2016.1,1e-05]
[1742729956863,7.95982,2016.2,2016.1,1e-05]
[1742729957290,8.78532,2016.2,2016.1,1e-05]
[1742729968977,7.95982,2016.2,2016.1,1e-05]
[1742729969177,10.43611764,2016.2,2016.1,1e-05]
[1742729970111,15.11411764,2016.2,2016.1,1e-05]
[1742729973112,15.66411764,2016.2,2016.1,1e-05]
[1742729977594,10.43611764,2016.2,2016.1,1e-05]
[1742729977795,15.11411764,2016.2,2016.1,1e-05]
[1742729980017,10.43611764,2016.2,2016.1,1e-05]
[1742729980221,15.11411764,2016.2,2016.1,1e-05]
[1742729981391,10.43611764,2016.2,2016.1,0.79091]
[1742729981598,7.95982,2016.2,2016.1,0.79091]
[1742729982113,4.95982,2016.2,2016.1,0.79091]
[1742729985530,4.96198,2015.4,2015.2,0.7909]
[1742729985697,4.96197,2015.4,2015.2,0.7909]
[1742729986127,4.96194,2015.4,2015.2,0.7909]
[1742729986328,9.92386,2015.4,2015.2,0.7909]
[1742729986655,4.96204,2015.3,2015.2,0.7909]
[1742729993761,4.96147,2015.6,2015.2,4.96225]
[1742729993928,9.923,2015.6,2015.3,0.7646]
[1742729994121,4.96164,2015.5,2015.3,0.7646]
[1742729996628,4.96164,2015.5,2015.0,4.96277]
[1742729996629,0.992311,2015.5,2015.0,0.7646]
[1742729996853,4.96244,2015.2,2015.0,0.7646]
[1742729997039,9.92494,2015.2,2015.0,0.7646]
[1742729997238,4.96244,2015.2,2015.0,0.7646]
[1742729997448,4.96253,2015.1,2015.0,0.7646]
[1742730006966,4.96244,2015.2,2015.0,0.7646]
[1742730008064,4.96233,2015.2,2015.0,0.7646]
[1742730008460,4.96205,2015.3,2015.0,0.7646]
[1742730008647,1.13030878,2015.9,2015.0,0.7646]
[1742730008853,3.0,2015.7,2015.2,0.7559]
[1742730009172,9.92229,2015.7,2015.4,0.7559]
[1742730009472,5.95913338,2016.0,2015.4,0.7559]
[1742730009473,4.96151,2015.6,2015.4,0.7559]
[1742730010043,4.96264,2015.1,2014.9,0.7559]
[1742730010654,9.9254,2015.1,2014.9,0.7559]
[1742730011177,4.96235,2015.2,2014.9,0.7559]
[1742730011345,9.92485,2015.2,2014.9,0.7559]
[1742730011541,4.96253,2015.1,2014.9,0.7559]
[1742730012570,4.96277,2015.0,2014.9,0.7559]
[1742730014466,4.96253,2015.1,2014.9,0.7559]
[1742730016747,4.96231,2015.2,2014.9,0.7559]
[1742730017280,4.96204,2015.3,2015.0,0.8124]
[1742730017281,9.92419,2015.3,2015.0,0.8124]
[1742730017800,4.9623,2015.2,2015.0,0.8124]
[1742730018081,4.96253,2015.1,2015.0,0.8124]
[1742730024806,4.9623,2015.2,2015.0,0.8124]
[1742730025475,9.92479,2015.2,2015.0,0.8124]
[1742730025877,4.96253,2015.1,2015.0,0.8124]
[1742730026307,4.9623,2015.2,2015.0,0.8124]
[1742730026510,9.9248,2015.2,2015.0,0.8124]
[1742730027206,4.96311,2014.9,2014.7,3.8124]
[1742730029914,9.92633,2014.9,2014.7,3.8124]
[1742730030109,4.96311,2014.9,2014.7,3.8124]
[1742730031720,4.96311,2014.9,2014.8,0.23667971]
[1742730032715,9.9257,2015.0,2014.8,0.23667971]
[1742730032893,4.96278,2015.0,2014.8,0.23667971]
[1742730035108,4.96302,2014.9,2014.8,0.23667971]
[1742730036190,4.96329,2014.8,2014.6,4.785]
[1742730036725,4.96398,2014.6,2013.9,5.76082]
[1742730036901,0.8065,2014.7,2013.9,0.7955]
[1742730037101,4.9641,2014.5,2014.1,0.7955]
[1742730037313,9.92828,2014.5,2014.1,0.7955]
[1742730037485,4.96427,2014.4,2014.1,0.7955]
[1742730039612,0.8065,2014.7,2014.0,3.0]
[1742730039613,4.96451,2014.3,2014.0,3.0]
[1742730039814,4.96486,2014.2,2014.0,3.0]
[1742730040615,4.96548,2013.9,2013.8,0.1211922]
[1742730041213,4.96524,2014.0,2013.8,0.1211922]
[1742730041388,4.96548,2013.9,2013.8,0.1211922]
[1742730043608,4.96524,2014.0,2013.8,0.1211922]
[1742730044628,5.7715,2014.1,2013.8,0.1211922]
[1742730044923,10.73536,2014.4,2013.9,4.96542]
[1742730045124,5.77087,2014.4,2014.0,5.76059]
[1742730045318,4.96457,2014.3,2014.0,0.7955]
[1742730045518,5.77087,2014.4,2014.0,5.76063]
[1742730045724,4.96437,2014.4,2014.0,5.76063]
[1742730046427,4.96433,2014.4,2014.0,5.76072]
[1742730051726,0.8065,2014.6,2014.1,4.96498]
[1742730051894,5.956111,2014.8,2014.3,4.96449]
[1742730052100,4.96363,2014.7,2014.3,5.78169]
[1742730052301,4.96363,2014.7,2014.3,0.8172]
[1742730053121,4.96389,2014.6,2014.3,0.8172]
[1742730054635,1.068726,2014.6,2014.2,4.795]
[1742730054937,4.9645,2014.3,2014.2,4.795]
[1742730055113,4.9645,2014.3,2014.1,26.25]
[1742730055312,4.96475,2014.2,2014.0,3.0]